{"text_format":"1","workbook":"xlsx","n_sheets":10,"sheets":["Opći podaci","Tablica 1","Tablica 2","Tablica 3","Tablica 4","Tablica 5","Tablica 6","Tablica 7","Tablica 8","pomocni_sheet"],"not_rendered":{"charts":0,"images":0,"macros":1,"external_links":0,"defined_names":2,"comments":0,"pivot_tables":0},"unopened":[],"bounds":{"document_bytes":16777216,"sheet_cells":100000,"rows_first":2000,"rows_last":500,"rows_between":2000,"halvings":0,"cell_chars":16384,"cell_head_chars":4096},"cells_cut":0,"cells_raw":0,"read":"whole","date_system":"1900"}

{"sheet":"Opći podaci","index":0,"n_rows":76,"n_cols":12,"rows_kept":76,"cut":false,"hidden":false,"merged":[[41,1,41,4],[24,1,24,4],[37,1,37,2],[39,1,39,3],[75,1,75,11],[33,4,33,7],[62,1,62,2],[20,2,20,3],[20,6,20,7],[22,1,22,2],[22,3,22,7],[14,9,14,11],[15,9,15,10],[16,2,16,3],[16,6,16,7],[18,2,18,3],[18,6,18,7],[12,2,13,7],[13,9,13,11],[1,1,2,3],[1,4,2,6],[1,7,1,11],[2,7,2,11],[3,1,3,11],[4,1,4,11],[5,1,5,11],[7,9,7,11],[8,9,8,11],[10,8,10,11],[11,8,11,11]]}
[]
[null,"R E P U B L I K A  H R V A T S K A\nDRŽAVNI ZAVOD ZA STATISTIKU",null,null,"10000 Zagreb, Ilica 3\nInternetske stranice: http://www.dzs.hr",null,null,"Obrazac MZ-1"]
[null,null,null,null,null,null,null,"Istraživanje se provodi na temelju Godišnjeg provedbenog plana statističkih aktivnosti \n(NN, br.19/2019.) "]
[null,"IZVJEŠTAJ MUZEJA I MUZEJSKIH ZBIRKI ZA 2018."]
[null,"Obveza podnošenja izvještaja temelji se na članku 38. Zakona o službenoj statistici (NN, br. 103/03., 75/09., 59/12. i 12/13.). Odbijanje davanja podataka, davanje nepotpunih i netočnih podataka ili nedavanje podataka u propisanom roku povlači kaznene odredbe iz članaka 69. i 70. navedenog zakona."]
[null,"Podaci koje dajete u ovom izvještaju koristit će se isključivo za statističke svrhe i neće se objavljivati kao pojedinačni."]
[]
[null,"Vrsta posla","2KK1",null,"Razdoblje",1,"Godina","2018"]
[null,null,null,null,null,null,null,null,null,"(ispunjava DZS)"]
[]
[null,"1. PODACI O JEDINICI ZA KOJU SE PODNOSI IZVJEŠTAJ (POSLOVNI SUBJEKT)"]
[null,null,null,null,null,null,null,null,"OIB"]
[null,"a) NAZIV MUZEJA (muzejske zbirke) "]
[]
[null,null,null,null,null,null,null,null,null,"MB"]
[]
[null,"b) Županija",null,null,"Grad/općina"]
[null,null,null,null,null,null,null,null,null,null,null,"DPS"]
[null,"Naselje",null,null,"Ulica i broj"]
[]
[null,"Telefon ",null,null,"Elektronička pošta "]
[]
[null,"Osoba odgovorna za ispunjavanje obrasca:"]
[]
[null,"JE LI MUZEJ TIJEKOM GODINE BIO OTVOREN ZA JAVNOST",null,null,null,null,null,"--odaberite--",{"$f":"HYPERLINK(\"#\"&ADDRESS(ROW(),COLUMN()-1),CHAR(128))","v":"€"}]
[null,null,null," (odaberite jedan odgovor, DA = 1, NE = 2): "]
[]
[]
[null,"OSNIVAČ MUZEJA (odaberite jedan odgovor): ",null,null,"1. Republika Hrvatska",null,null,"-- odaberite --",{"$f":"HYPERLINK(\"#\"&ADDRESS(ROW(),COLUMN()-1),CHAR(128))","v":"€"}]
[null,null,null,null,"2. jedinica lokalne uprave i samouprave"]
[null,null,null,null,"3. domaća pravna ili fizička osoba"]
[null,null,null,null,"4. strana pravna ili fizička osoba"]
[null,null,null,null,"5. pravna osoba u pretežitom vlasništvu RH"]
[null,null,null,null,"6. pravna osoba u pretežitom vlasništvu jedinice lokalne i područne(regionalne) samouprave"]
[null,null,null,null,"7. vjerska zajednica"]
[null,null,null,null,"8. više osnivača"]
[]
[null,"GODINA OSNUTKA MUZEJA : "]
[]
[null,"GODINA OTVARANJA MUZEJA ZA JAVNOST : "]
[]
[null,"Podjela prema teritorijalnoj pokrivenosti (označite jedan odgovor): ",null,null,null,null,"1. nacionalni","-- odaberite --",{"$f":"HYPERLINK(\"#\"&ADDRESS(ROW(),COLUMN()-1),CHAR(128))","v":"€"}]
[null,null,null,null,null,null,"2. regionalni"]
[null,null,null,null,null,null,"3. lokalni"]
[]
[null,"Podjela prema vrsti građe (označite jedan odgovor): ",null,null,null,null,"1. opći","--odaberite--",{"$f":"HYPERLINK(\"#\"&ADDRESS(ROW(),COLUMN()-1),CHAR(128))","v":"€"}]
[null,null,null,null,null,null,"   specijalizirani:"]
[null,null,null,null,null,null,"2. - povijesni"]
[null,null,null,null,null,null,"3. - arheološki"]
[null,null,null,null,null,null,"4. - etnografski"]
[null,null,null,null,null,null,"5. - prirodoslovni"]
[null,null,null,null,null,null,"6. - tehnički "]
[null,null,null,null,null,null,"7. - ekomuzej"]
[null,null,null,null,null,null,"8. - ostalo (memorijalni, biografski i sl. )"]
[]
[null,"INFORMACIJSKA I KOMUNIKACIJSKA TEHNOLOGIJA "]
[]
[null,"Da li je muzej opremljen s barem jednim računalom?  ",null,null,null,null,"1. da","--odaberite--",{"$f":"HYPERLINK(\"#\"&ADDRESS(ROW(),COLUMN()-1),CHAR(128))","v":"€"}]
[null,"(označite jedan odgovor)",null,null,null,null,"2. ne"]
[]
[null,"Ako jest, računalo se koristi u sljedeće svrhe",null,null,null,null,"1. administrativne potrebe","--odaberite--",{"$f":"HYPERLINK(\"#\"&ADDRESS(ROW(),COLUMN()-1),CHAR(128))","v":"€"}]
[null,"(moguće odabrati nekoliko odgovora)",null,null,null,null,"2. informiranje posjetilaca","--odaberite--",{"$f":"HYPERLINK(\"#\"&ADDRESS(ROW(),COLUMN()-1),CHAR(128))","v":"€"}]
[null,"(označiti svaki od pojedinih točnih odgovora)",null,null,null,null,"3. za bazu podataka koja služi kao elektronički inventar","--odaberite--",{"$f":"HYPERLINK(\"#\"&ADDRESS(ROW(),COLUMN()-1),CHAR(128))","v":"€"}]
[null,null,null,null,null,null,"4. za pristup internetu (za djelatnike) ","--odaberite--",{"$f":"HYPERLINK(\"#\"&ADDRESS(ROW(),COLUMN()-1),CHAR(128))","v":"€"}]
[]
[null,"Da li je muzej predstavljen na internetu? (označite jedan odgovor):      ",null,null,null,null,"1. da","--odaberite--",{"$f":"HYPERLINK(\"#\"&ADDRESS(ROW(),COLUMN()-1),CHAR(128))","v":"€"}]
[null,null,null,null,null,null,"2. ne"]
[]
[null,"Ako jest, predstavljen je (moguće odabrati više odgovora): ",null,null,null,null,"1. na vlastitim mrežnim stranicama","--odaberite--",{"$f":"HYPERLINK(\"#\"&ADDRESS(ROW(),COLUMN()-1),CHAR(128))","v":"€"}]
[null,"(označiti svaki od pojedinih točnih odgovora)",null,null,null,null,"2. u sklopu drugih mrežnih stranica ","--odaberite--",{"$f":"HYPERLINK(\"#\"&ADDRESS(ROW(),COLUMN()-1),CHAR(128))","v":"€"}]
[null,null,null,null,null,null,"3. na društvenim mrežama","--odaberite--",{"$f":"HYPERLINK(\"#\"&ADDRESS(ROW(),COLUMN()-1),CHAR(128))","v":"€"}]
[]
[null,"Da li je mrežna stranica muzeja: ",null,null,null,null,"1. povezana s jednim muzejskim portalom ","--odaberite--",{"$f":"HYPERLINK(\"#\"&ADDRESS(ROW(),COLUMN()-1),CHAR(128))","v":"€"}]
[null,null,null,null,null,null,"2. povezana s više muzejskih portala"]
[]
[null,"Poštovani!\n\nCilj je ovog istraživanja dobivanje podataka o muzejima i muzejskim zbirkama na području Republike Hrvatske u 2018.                               \nStatistički izvještaj ispunjavaju svi muzeji i muzejske zbirke koje su radile u 2018., bez obzira na to izlažu li predmete i jesu li otvoreni za javnost.\nUmjetničke galerije koje imaju muzejsku građu obrađuju se kao umjetnički muzeji.\nZa sve eventualne nejasnoće možete se konzultirati s Državnim zavodom za statistiku Republike Hrvatske, Službom statistike obrazovanja, kulture i znanosti, telefonom (01) 4893-424  ili elektroničkom poštom na adresu sojata@dzs.hr.\n\nZahvaljujemo na suradnji!"]

{"sheet":"Tablica 1","index":1,"n_rows":6,"n_cols":14,"rows_kept":6,"cut":false,"hidden":false,"merged":[[1,0,2,0],[1,1,2,1],[1,2,1,12],[1,13,2,13]]}
["Tablica 1.   PREDMETI PO VRSTAMA ZBIRKI (stanje 31. prosinca 2018.)"]
["Red. broj sloga",null,"Stalni postav",null,null,null,null,null,null,null,null,null,null,"Neinventarizirani predmeti"]
[null,null,"ukupno \n(2 do 11)","prirodo-\nslovne","povijesne","kulturno-povijesne","arheološke","numizmatičke","etnografske","umjetničke","primijenjenih umjetnosti","tehničke","ostale"]
[null,"a",1,2,3,4,5,6,7,8,9,10,11,12]
[1,"Ukupno"]
[2,"Izloženi"]

{"sheet":"Tablica 2","index":2,"n_rows":10,"n_cols":6,"rows_kept":10,"cut":false,"hidden":false,"merged":[[8,1,8,2],[9,0,9,4],[1,0,3,0],[1,1,3,1],[1,2,1,5],[2,2,3,2],[2,3,3,3],[2,4,2,5]]}
["Tablica 2. BROJ POSJETITELJA (STALNOG POSTAVA) (od 1. siječnja do 31. prosinca 2018.)"]
["Red. broj sloga",null,"Posjetitelji"]
[null,null,"ukupno","pojedinačni posjeti","skupni posjeti1)"]
[null,null,null,null,"školski","ostali"]
[null,"a",1,2,3,4]
[1,"Ukupno"]
[2,"Plaćaju ulaznicu"]
[3,"Ne plaćaju ulaznicu"]
[]
["1) Treba dati broj posjetitelja, a ne broj skupina.\nPodatke za ovu tablicu treba dati na osnovi evidencije o broju posjetitelja. Ako se ne raspolaže evidencijom, treba dati procjenu.\n"]

{"sheet":"Tablica 3","index":3,"n_rows":9,"n_cols":9,"rows_kept":9,"cut":false,"hidden":false,"merged":[[1,0,3,0],[1,1,3,1],[1,2,1,5],[1,6,1,8],[2,2,2,3],[2,4,2,5],[2,6,3,6],[2,7,3,7],[2,8,3,8]]}
["Tablica 3. POVREMENE IZLOŽBE I POSJETITELJI (od 1. siječnja do 31. prosinca 2018.)1)"]
["Red. broj sloga",null,"Izložbe u muzeju",null,null,null,"Izložbe izvan muzeja u"]
[null,null,"vlastite",null,"gostovanja iz",null,"drugim prostorima u mjestu","drugim mjestima Republike Hrvatske","inozemstvu"]
[null,null,"vlastiti fundus","ostalo","drugog muzeja ili zbirke Republike Hrvatske","inozemstva"]
[null,"a",1,2,3,4,5,6,7]
[1,"Broj izložaba"]
[2,"Broj posjetitelja"]
[]
["1) Upišite podatke za izložbe koje nisu stalan postav i posjetitelje tih izložaba."]

{"sheet":"Tablica 4","index":4,"n_rows":25,"n_cols":8,"rows_kept":25,"cut":false,"hidden":false,"merged":[[0,0,0,8],[24,0,24,7],[5,1,6,1],[7,1,8,1],[11,1,12,1],[13,1,14,1],[16,0,16,7],[18,0,18,7],[20,0,20,7],[22,0,22,7]]}
["Tablica 4. ZAPOSLENI, (stanje 31. prosinca 2018.), ANGAŽIRANI NA TEMELJU UGOVORA O DJELU I VOLONTERI (od 1. siječnja do 31. prosinca 2018.)"]
["Red. broj sloga",null,null,"Ukupno 2 do 5","Stručna muzejska zvanja","Stručni","Pomoćni stručni","Ostali"]
[null,null,"a",1,2,3,4,5]
[1,"Zaposleni s punim radnim vremenom","svega"]
[2,"(stanje 31. prosinca 2015.)","žene"]
[3,"Zaposleni s kraćim od punoga radnog vremena \n(od 1. siječnja do 31. prosinca 2015.)","svega"]
[4,null,"žene"]
[5,"Ekvivalent pune zaposlenosti1)","svega"]
[6,null,"žene"]
[7,"Angažirani na temelju ugovora o djelu","svega"]
[8,"(od 1. siječnja do 31. prosinca 2015.)","žene"]
[9,"Ekvivalent pune angažiranosti1)","svega"]
[10,null,"žene"]
[11,"Volonteri","svega"]
[12,null,"žene"]
[]
["1) Ekvivalent pune zaposlenosti/angažiranosti izračunava se ovako: a) za zaposlene s kraćim od punoga radnog vremena, npr. jedan zaposlenik s pola radnog vremena i jedan s četvrtinom radnog vremena daje ekvivalent 0,50 + 0,25 = 0,75; b) za angažirane na osnovi ugovora o djelu npr. jedna osoba koja je angažirana na šest mjeseci, tj. pola godine i šest osoba koje su angažirane po jedan mjesec daju ekvivalent 0,50 + 6 x 1/12 = 1."]
[]
["\"Stručna muzejska zvanja\": kustos, viši kustos i muzejski savjetnik."]
[]
["\"Stručni\": muzejski pedagog, viši muzejski pedagog, muzejski pedagog savjetnik, dokumentarist, viši dokumentarist, dokumentarist savjetnik informatičar, viši informatičar, informatičar savjetnik, restaurator, viši restaurator, restaurator savjetnik, voditelj marketinga, viši voditelj marketinga, savjetnik za marketing, voditelj odnosa s javnošću, viši voditelj odnosa s javnošću, savjetnik za odnose s javnošću, diplomirani knjižničar, viši knjižničar, knjižničarski savjetnik, arhivist, viši arhivist, arhivski savjetnik i drugi stručnjaci ovisno o potrebama muzeja i galerije te muzeja, galerije i zbirke unutar pravne osobe."]
[]
["\"Pomoćni stručni\": preparator, viši preparator, muzejski tehničar, viši muzejski tehničar, fotograf, viši fotograf, pomoćni knjižničari, knjižničar, arhivski tehničar, viši arhivski tehničar i druge stručne osobe ovisno o potrebama muzeja i galerije te muzeja, galerije i zbirke unutar pravne osobe."]
[]
["\"Ostali\": administrativni i pomoćni zaposlenici."]

{"sheet":"Tablica 5","index":5,"n_rows":5,"n_cols":8,"rows_kept":5,"cut":false,"hidden":false,"merged":[]}
["Tablica 5. BROJ I POVRŠINA PROSTORIJA KOJIMA SE MUZEJ KORISTI (stanje 31. prosinca 2018.)"]
["Red. broj sloga",null,"Ukupno (2 do 5)","Izložbene prostorije","Spremišta","Radionice i laboratoriji","Ostale prostorije","Izvan muzeja na otvorenom"]
[null,null,1,2,3,4,5,6]
[1,"Broj"]
[2,"Površina, m2"]

{"sheet":"Tablica 6","index":6,"n_rows":9,"n_cols":9,"rows_kept":9,"cut":false,"hidden":false,"merged":[[6,6,6,7]]}
["Tablica 6. IZDAVAČKA DJELATNOST MUZEJA (od 1. siječnja do 31. prosinca 2018.)"]
["Red. broj sloga",null,"Zbornici, anali","Katalozi zbirki","Katalozi izložaba","Muzejski vodiči","Plakati1)","Elektroničke publikacije","Ostalo2)"]
[null,"a",1,2,3,4,5,null,6]
[1,"Broj",null," "]
[2,"Naklada"]
[3,"Format"]
[]
["1) Umjetnički, izložbeni plakati"]
["2) Razglednice, kopije, reprodukcije"]

{"sheet":"Tablica 7","index":7,"n_rows":12,"n_cols":3,"rows_kept":12,"cut":false,"hidden":false,"merged":[]}
["Tablica 7. GODIŠNJI PRIHOD PREMA IZVORIMA U 2018. (stanje 31. prosinca 2018.)"]
["Red. broj sloga","Izvor prihoda","Iznos u kunama bez lipa"]
[null,"a",1]
[1,"Državni proračun"]
[2,"Županijski proračun"]
[3,"Gradski/općinski proračun"]
[4,"Vjerske zajednice"]
[5,"Europski projekti"]
[6,"Prihod od ulaznica"]
[7,"Prihod od vlastite djelatnosti (ulaznice, publikacije, prodaje replika i suvenira, iznajmljivanje prostora i sl.)"]
[8,"Ostalo (sponzori, donatori i sl.)"]
[9,"Ukupno"]

{"sheet":"Tablica 8","index":8,"n_rows":11,"n_cols":3,"rows_kept":11,"cut":false,"hidden":false,"merged":[[11,2,11,3]]}
["Tablica 8. GODIŠNJI IZDACI (TROŠKOVI) ZA 2018. (stanje 31. prosinca 2018.)"]
["Red. broj sloga","Vrsta izdatka","Iznos u kunama bez lipa"]
[null,"a",1]
[1,"Tekući izdaci (plaće i materijalni troškovi)"]
[2,"Trošak najma prostora za muzej"]
[3,"Otkup muzejske građe"]
[4,"Zaštita muzejske građe"]
[5,"Digitalizacjija"]
[6,"Troškovi oglašavanja (odnosi s javnošću)"]
[7,"Ostalo"]
[8,"Ukupno"]

{"sheet":"pomocni_sheet","index":9,"n_rows":10,"n_cols":27,"rows_kept":10,"cut":false,"hidden":true,"merged":[]}
[]
["-- odaberite --",null,{"$f":"IF(B1=\"\", \"--odaberite--\")","v":"--odaberite--"},null,{"$f":"IF(D1=\"\", \"--odaberite--\")","v":"--odaberite--"},null,null,{"$f":"IF(G1=\"\", \"--odaberite--\")","v":"--odaberite--"},null,null,{"$f":"IF(J1=\"\", \"--odaberite--\")","v":"--odaberite--"},null,{"$f":"IF(L1=\"\", \"--odaberite--\")","v":"--odaberite--"},null,{"$f":"IF(N1=\"\", \"--odaberite--\")","v":"--odaberite--"},null,{"$f":"IF(P1=\"\", \"--odaberite--\")","v":"--odaberite--"},null,null,{"$f":"IF(S1=\"\", \"--odaberite--\")","v":"--odaberite--"},null,{"$f":"IF(U1=\"\", \"--odaberite--\")","v":"--odaberite--"},null,{"$f":"IF(W1=\"\", \"--odaberite--\")","v":"--odaberite--"},null,null,{"$f":"IF(Z1=\"\", \"--odaberite--\")","v":"--odaberite--"}]
[1,null,1,null,1,null,null,1,null,null,1,null,2,null,3,null,4,null,null,1,null,2,null,3,null,null,1]
[2,null,2,null,2,null,null,2,null,null,null,null,null,null,null,null,null,null,null,null,null,null,null,null,null,null,2]
[3,null,null,null,3,null,null,3]
[4,null,null,null,null,null,null,4]
[5,null,null,null,null,null,null,5]
[6,null,null,null,null,null,null,6]
[7,null,null,null,null,null,null,7]
[8,null,null,null,null,null,null,8]